bitfinex/quotes_BTCUSD_20220211
["timestamp","ask_amount","ask_price","bid_price","bid_amount"]
[1644545197858,0.29507669,43156.0,43153.0,0.32518]
[1644545198257,0.29507669,43156.0,43153.0,0.37518]
[1644545198461,0.00056341,43156.0,43154.0,0.32518]
[1644545198658,0.00056341,43156.0,43154.0,0.37518]
[1644545198859,0.05,43160.0,43155.0,0.32518]
[1644545199058,0.00043536,43157.0,43154.0,0.05]
[1644545199260,0.00043536,43157.0,43155.0,0.32518]
[1644545199459,0.00043536,43157.0,43156.0,0.32518]
[1644545199663,0.00043536,43157.0,43151.0,0.2]
[1644545199861,0.00043536,43157.0,43152.0,0.32518]
[1644545200059,0.38213706,43158.0,43152.0,0.32518]
[1644545200259,0.38213706,43158.0,43154.0,0.35060694]
[1644545200460,0.38213706,43158.0,43154.0,0.05]
[1644545200662,0.38213706,43158.0,43152.0,0.05]
[1644545200861,0.38213706,43158.0,43151.0,0.05797376]
[1644545201165,0.38213706,43158.0,43152.0,0.37518]
[1644545201399,0.00054729,43157.0,43152.0,0.37518]
[1644545201597,0.00054729,43157.0,43153.0,0.62632852]
[1644545202499,0.38213706,43158.0,43153.0,0.68429953]
[1644545202700,0.00054729,43157.0,43154.0,0.135258]
[1644545202899,0.00054729,43157.0,43155.0,0.05]
[1644545203100,0.00054729,43157.0,43156.0,0.32518]
[1644545203298,0.00054729,43157.0,43156.0,0.3966841]
[1644545203501,0.00054729,43157.0,43156.0,0.8072652]
[1644545203706,0.03087197,43164.0,43160.0,0.25700168]
[1644545203902,0.03087197,43164.0,43161.0,0.32518]
[1644545204301,0.03087197,43164.0,43161.0,0.42518]
[1644545204701,0.03087197,43164.0,43162.0,0.32518]
[1644545204902,0.03087197,43164.0,43162.0,0.42518]
[1644545205150,0.03087197,43164.0,43163.0,0.32518]
[1644545205350,0.03087197,43164.0,43163.0,0.70443408]
[1644545205555,0.00054838,43165.0,43163.0,0.85672155]
[1644545205752,0.00054838,43165.0,43164.0,0.64478988]
[1644545205951,0.00054838,43165.0,43164.0,0.69478988]
[1644545206254,0.06,43169.0,43164.0,0.79478988]
[1644545206454,0.06,43169.0,43165.0,0.72335661]
[1644545206455,0.00042,43166.0,43165.0,0.72335661]
[1644545206652,0.00042,43166.0,43165.0,0.89718836]
[1644545206852,0.00042,43166.0,43165.0,0.99718836]
[1644545207051,0.00042,43166.0,43165.0,0.93924436]
[1644545207252,0.06,43169.0,43165.0,0.93924436]
[1644545207451,0.06,43169.0,43166.0,0.5196027]
[1644545207652,0.00041959,43168.0,43167.0,0.325157]
[1644545207852,0.00041959,43168.0,43167.0,0.425157]
[1644545208551,0.06,43169.0,43167.0,0.425157]
[1644545208800,0.06,43169.0,43167.0,0.48310194]
[1644545208998,0.06,43169.0,43168.0,0.32518]
[1644545209399,0.06,43169.0,43168.0,0.47518]
[1644545210402,0.01,43169.0,43168.0,0.47518]
[1644545211413,0.01,43169.0,43168.0,0.37518]
[1644545211606,0.01,43169.0,43162.0,0.15795866]
[1644545211607,0.33518,43169.0,43162.0,0.15795866]
[1644545211802,0.107963,43168.0,43163.0,0.32518]
[1644545212002,0.05,43168.0,43166.0,0.32339945]
[1644545212203,0.05,43168.0,43166.0,0.64857945]
[1644545212403,0.05055295,43168.0,43166.0,0.69857945]
[1644545212652,0.05055295,43168.0,43166.0,0.79857945]
[1644545213248,0.05,43168.0,43166.0,0.79857945]
[1644545213850,0.05,43168.0,43166.0,0.84857945]
[1644545214854,0.05,43168.0,43166.0,0.79857945]
[1644545216054,0.03095702,43173.0,43167.0,0.30242494]
[1644545216303,0.05,43180.0,43172.0,0.07245609]
[1644545216502,0.05,43180.0,43173.0,0.32518]
[1644545216805,0.05,43180.0,43173.0,0.47518]
[1644545217001,0.05,43180.0,43173.0,0.71080935]
[1644545217202,0.05,43180.0,43173.0,1.002852]
[1644545217404,0.05,43180.0,43173.0,1.3054367]
[1644545217803,0.05,43180.0,43173.0,1.38306085]
[1644545218003,0.05,43180.0,43175.0,0.32518]
[1644545218206,0.05,43180.0,43176.0,0.32518]
[1644545218405,0.42214525,43182.0,43177.0,0.05792642]
[1644545218604,0.00214525,43182.0,43178.0,0.67031888]
[1644545218804,0.00214525,43182.0,43178.0,0.87031888]
[1644545219004,0.00214525,43182.0,43181.0,0.77597717]
[1644545219204,0.42,43183.0,43181.0,0.87597717]
[1644545219410,0.01,43189.0,43181.0,1.09182317]
[1644545219609,0.01168406,43189.0,43183.0,0.32518]
[1644545219807,0.01168406,43189.0,43183.0,0.47158]
[1644545220056,0.01168406,43189.0,43184.0,0.32518]
[1644545220456,0.01,43189.0,43184.0,0.42518]
[1644545220653,0.01,43189.0,43187.0,0.21504396]
[1644545220851,0.01,43189.0,43188.0,0.73252533]
[1644545221051,0.01,43189.0,43188.0,0.85489435]
[1644545221252,0.01,43189.0,43188.0,0.95489435]
[1644545222057,0.01,43189.0,43188.0,0.88252533]
[1644545223052,0.01,43189.0,43188.0,0.95117055]
[1644545223904,0.01,43189.0,43188.0,0.533097]
[1644545224103,0.01,43189.0,43188.0,0.37518]
[1644545224306,0.01,43189.0,43188.0,0.47518]
[1644545226605,0.01,43189.0,43188.0,0.05]
[1644545226805,0.01,43189.0,43182.0,0.11585297]
[1644545227006,0.01,43189.0,43183.0,0.32518]
[1644545227405,0.01,43189.0,43183.0,0.42518]
[1644545227852,0.01,43189.0,43184.0,0.05792851]
[1644545228052,0.00054785,43188.0,43185.0,0.32518]
[1644545228250,0.00054785,43188.0,43185.0,0.37518]
[1644545228451,0.00054785,43188.0,43187.0,0.32518]
[1644545228850,0.01,43189.0,43187.0,0.37518]
[1644545229050,0.01,43189.0,43188.0,0.32518]
[1644545229454,0.33518,43189.0,43187.0,0.05]
[1644545229855,0.057934,43188.0,43183.0,0.15]
[1644545230051,0.05,43187.0,43183.0,0.15]
[1644545230652,0.05,43187.0,43177.0,1.09965095]
[1644545230852,0.33218285,43180.0,43179.0,0.32518]
[1644545231052,0.05,43187.0,43179.0,0.37518]
[1644545231314,0.05,43187.0,43182.0,0.32518]
[1644545231516,0.05,43187.0,43181.0,0.05]
[1644545231517,0.32518,43186.0,43181.0,0.05]
[1644545231714,0.32518,43186.0,43171.0,0.1229]
[1644545231715,0.00054952,43184.0,43171.0,0.1229]
[1644545231911,0.00054952,43184.0,43172.0,0.32518]
[1644545232111,0.00054952,43184.0,43174.0,0.05794154]
[1644545232311,0.00054952,43184.0,43176.0,0.134864]
[1644545232516,0.3,43185.0,43178.0,0.25431797]
[1644545232812,0.0005494,43184.0,43178.0,0.51206283]
[1644545233213,0.32518,43183.0,43178.0,0.05]
[1644545233512,0.0584894,43184.0,43171.0,0.1229]
[1644545233513,0.0005494,43184.0,43172.0,0.32518]
[1644545233714,0.0005494,43184.0,43165.0,0.33359435]
[1644545233715,0.38089654,43174.0,43165.0,0.33359435]
[1644545233914,0.38089654,43174.0,43166.0,0.00040653]
[1644545234113,0.28342193,43173.0,43167.0,0.32518]
[1644545234313,0.43884954,43174.0,43167.0,0.6258592]
[1644545234513,0.38089654,43174.0,43167.0,0.6258592]
[1644545235163,0.05,43175.0,43169.0,0.0876788]
[1644545235360,0.05,43175.0,43170.0,0.32518]
[1644545236061,0.4955,43178.0,43171.0,0.29901362]
[1644545236360,0.4955,43178.0,43173.0,0.05793716]
[1644545236560,0.4955,43178.0,43174.0,0.134874]
[1644545236763,0.4955,43178.0,43171.0,0.15]
[1644545236764,0.75805599,43178.0,43171.0,0.15]
[1644545237464,0.81600099,43178.0,43171.0,0.15]
[1644545237666,0.057951,43176.0,43171.0,0.15]
[1644545237861,0.057951,43176.0,43169.0,0.05794814]
[1644545238164,0.057951,43176.0,43170.0,0.32518]
[1644545238361,0.4955,43178.0,43170.0,0.52518]
[1644545238562,0.05,43177.0,43171.0,0.134924]
[1644545238804,0.05,43177.0,43172.0,0.32518]
[1644545239203,0.05,43177.0,43174.0,0.32518]
[1644545239402,0.5405,43178.0,43174.0,0.32518]
[1644545239602,0.05,43178.0,43174.0,0.37518]
[1644545239804,0.05,43178.0,43175.0,0.134848]
[1644545240103,0.32518,43177.0,43172.0,0.15]
[1644545240408,0.32518,43177.0,43171.0,0.11588055]
[1644545240409,0.05,43178.0,43173.0,0.32518]
[1644545240602,0.05,43178.0,43173.0,0.37518]
[1644545240803,0.05,43178.0,43175.0,0.32518]
[1644545241003,0.05,43178.0,43173.0,0.15]
[1644545241802,0.05,43178.0,43170.0,0.05]
[1644545242002,0.05,43178.0,43171.0,0.38312375]
[1644545242003,0.29003131,43177.0,43171.0,0.38312375]
[1644545242204,0.29003131,43177.0,43171.0,0.05794375]
[1644545242405,0.29003131,43177.0,43171.0,0.15794375]
[1644545243248,0.29003131,43177.0,43172.0,0.37518]
[1644545243451,0.29003131,43177.0,43174.0,0.32518]
[1644545243649,0.29003131,43177.0,43172.0,0.15]
[1644545243850,0.05,43178.0,43173.0,0.05794168]
[1644545244351,0.90301966,43177.0,43167.0,0.3006792]
[1644545244551,0.57783966,43177.0,43167.0,0.3006792]
[1644545245152,0.63578566,43177.0,43167.0,0.3006792]
[1644545245351,0.2990331,43174.0,43168.0,0.32518]
[1644545245753,0.2990331,43174.0,43168.0,0.37518]
[1644545245951,0.2990331,43174.0,43170.0,0.32518]
[1644545246802,0.3569831,43174.0,43171.0,0.32518]
[1644545247003,0.3569831,43174.0,43170.0,0.32518]
[1644545247303,0.3569831,43174.0,43170.0,0.37518]
[1644545247503,0.3569831,43174.0,43171.0,0.32518]
[1644545247707,0.3569831,43174.0,43169.0,0.05]
[1644545247906,0.3569831,43174.0,43170.0,0.38312797]
[1644545248107,0.2990331,43174.0,43171.0,0.32518]
[1644545248304,0.2990331,43174.0,43170.0,0.05794797]
[1644545248505,0.2990331,43174.0,43171.0,0.32518]
[1644545248705,0.2990331,43174.0,43170.0,0.05794797]
[1644545249007,0.165904,43178.0,43171.0,0.32518]
[1644545249008,0.05,43178.0,43171.0,0.32518]
[1644545249407,0.05,43178.0,43170.0,0.05]
[1644545249607,0.05,43178.0,43167.0,0.67437296]
[1644545249804,0.05,43178.0,43168.0,0.32518]
[1644545249805,0.25170572,43177.0,43168.0,0.32518]
[1644545250056,0.454818,43176.0,43168.0,0.32518]
[1644545250251,0.33479469,43175.0,43168.0,0.32518]
[1644545250451,0.33479469,43175.0,43166.0,0.0003478]
[1644545250452,0.32518,43173.0,43166.0,0.0003478]
[1644545250656,0.27704501,43175.0,43162.0,0.32518]
[1644545250951,0.057955,43173.0,43166.0,0.0003478]
[1644545251351,0.28784475,43169.0,43166.0,0.0003478]
[1644545251553,0.28784475,43169.0,43167.0,0.32518]
[1644545251851,0.28784475,43169.0,43167.0,0.37518]
[1644545252151,0.28784475,43169.0,43168.0,0.32518]
[1644545252351,0.28784475,43169.0,43165.0,0.00035538]
[1644545252352,0.89005121,43169.0,43165.0,0.00035538]
[1644545252555,0.32518,43166.0,43165.0,0.00035538]
[1644545252953,0.32518,43166.0,43150.0,0.0001]
[1644545253159,0.383152,43165.0,43163.0,0.0003554]
[1644545253353,0.72524936,43164.0,43163.0,0.0003554]
[1644545254203,0.383152,43164.0,43154.0,0.27602305]
[1644545254403,0.34460896,43166.0,43157.0,0.07800335]
[1644545254603,0.39100896,43166.0,43156.0,0.32518]
[1644545254803,0.39100896,43166.0,43157.0,0.32518]
[1644545255004,0.39100896,43166.0,43156.0,0.15]
[1644545255305,0.057963,43164.0,43156.0,0.15]
[1644545255504,0.104363,43164.0,43159.0,0.00035373]
[1644545255708,0.32018,43163.0,43159.0,0.00035373]
[1644545255905,0.0464,43164.0,43159.0,0.00035373]
[1644545256403,0.0464,43164.0,43154.0,0.37602305]
[1644545256404,0.324928,43163.0,43154.0,0.37602305]
[1644545256605,0.0464,43164.0,43155.0,0.324928]
[1644545256905,0.382896,43163.0,43159.0,0.00035372]
[1644545257104,0.115934,43163.0,43159.0,0.00035372]
[1644545257752,0.115934,43163.0,43156.0,0.05796658]
[1644545257955,0.115934,43163.0,43157.0,0.324928]
[1644545258153,0.357968,43163.0,43152.0,0.11593242]
[1644545258359,0.357968,43163.0,43150.0,0.0001]
[1644545258360,0.05,43159.0,43150.0,0.0001]
[1644545258555,0.05,43154.0,43150.0,0.0001]
[1644545258754,0.324928,43153.0,43150.0,0.0001]
[1644545259254,0.62965051,43151.0,43150.0,0.00045241]
[1644545260155,0.62965051,43151.0,43150.0,0.0001]
[1644545261060,0.324928,43151.0,43150.0,0.0001]
[1644545262104,0.212374,43154.0,43150.0,0.0001]
[1644545262105,0.0964,43154.0,43150.0,0.0001]
[1644545262306,0.0464,43154.0,43151.0,0.324969]
[1644545262605,0.0464,43154.0,43151.0,0.374969]
[1644545262807,0.0464,43154.0,43152.0,0.324969]
[1644545263203,0.0464,43154.0,43152.0,0.424969]
[1644545264103,0.35254798,43158.0,43152.0,0.424969]
[1644545264302,0.35254798,43158.0,43152.0,0.1]
[1644545264502,0.35254798,43158.0,43151.0,0.00035272]
[1644545265156,0.057977,43156.0,43152.0,0.0003527]
[1644545265354,0.057976,43155.0,43152.0,0.0003527]
[1644545265558,0.29392498,43158.0,43152.0,0.0003527]
[1644545265754,0.324969,43157.0,43152.0,0.0003527]
[1644545266160,0.324969,43157.0,43151.0,0.15]
[1644545266356,0.05,43155.0,43152.0,0.00035263]
[1644545267158,0.324969,43154.0,43152.0,0.00035263]
[1644545267357,0.05,43155.0,43150.0,0.0001]
[1644545267557,0.05,43155.0,43151.0,0.00035264]
[1644545268257,0.324969,43154.0,43151.0,0.00035264]
[1644545268459,0.05,43155.0,43151.0,0.00035264]
[1644545268661,0.05,43155.0,43150.0,0.0001]
[1644545268903,0.107976,43155.0,43151.0,0.324969]
[1644545269100,0.107976,43155.0,43150.0,0.00045265]
[1644545269601,0.107976,43155.0,43151.0,0.324969]
[1644545269801,0.107976,43155.0,43151.0,0.374969]
[1644545270003,0.107976,43155.0,43151.0,0.05]
[1644545270203,0.107976,43155.0,43151.0,0.324969]
[1644545270402,0.107976,43155.0,43150.0,0.00045267]
[1644545271003,0.107976,43155.0,43150.0,0.0001]
[1644545271208,0.107976,43155.0,43150.0,0.00045267]
[1644545271417,0.107976,43155.0,43151.0,0.324969]
[1644545271806,0.107976,43155.0,43150.0,0.00045267]
[1644545272009,0.057979,43154.0,43150.0,0.00045267]
[1644545272208,0.057979,43154.0,43150.0,3e-05]
[1644545272209,0.324969,43153.0,43150.0,3e-05]
[1644545272408,0.324969,43153.0,43150.0,0.00038267]
[1644545273465,0.256044,43151.0,43150.0,3e-05]
[1644545277305,0.05799,43152.0,43148.0,0.00035268]
[1644545277503,0.324969,43151.0,43148.0,0.00035268]
[1644545277905,0.256044,43150.0,43148.0,0.00035268]
[1644545278207,0.05,43155.0,43148.0,0.00035268]
[1644545278208,0.05,43155.0,43148.0,0.324969]
[1644545278405,0.05,43155.0,43147.0,0.32532169]
[1644545278606,0.05,43155.0,43154.0,0.3350036]
[1644545278807,0.374969,43155.0,43154.0,0.3850036]
[1644545279206,0.05,43155.0,43154.0,0.3850036]
[1644545279707,0.05,43155.0,43154.0,0.7099726]
[1644545280355,0.28396436,43169.0,43158.0,0.30158289]
[1644545280553,0.27986958,43166.0,43159.0,0.324969]
[1644545280953,0.27986958,43166.0,43159.0,0.424969]
[1644545281253,0.27986958,43166.0,43159.0,0.324969]
[1644545281254,0.33783358,43166.0,43159.0,0.324969]
[1644545281452,0.33783358,43166.0,43159.0,0.424969]
[1644545281655,0.057964,43166.0,43159.0,0.424969]
[1644545281854,0.057964,43166.0,43159.0,0.38293321]
[1644545282053,0.057964,43164.0,43158.0,0.05]
[1644545282254,0.382941,43163.0,43154.0,0.4850036]
[1644545282452,0.057972,43163.0,43155.0,0.324969]
[1644545282752,0.32699344,43162.0,43155.0,0.324969]
[1644545282952,0.32699344,43162.0,43155.0,0.424969]
[1644545283154,0.345937,43166.0,43155.0,0.424969]
[1644545283353,0.057971,43161.0,43155.0,0.424969]
[1644545283553,0.345937,43166.0,43155.0,0.424969]
[1644545284213,0.37798469,43164.0,43155.0,0.73318067]
[1644545284407,0.37798469,43164.0,43157.0,0.324969]
[1644545284606,0.115935,43163.0,43157.0,0.374969]
[1644545284807,0.057967,43163.0,43158.0,0.324969]
[1644545285408,0.057967,43163.0,43159.0,0.324969]
[1644545285606,0.057971,43161.0,43157.0,0.15]
[1644545285807,0.115942,43161.0,43158.0,0.324969]
[1644545286710,0.057971,43161.0,43158.0,0.324969]
[1644545288153,0.052971,43161.0,43158.0,0.324969]
[1644545288353,0.324969,43163.0,43157.0,0.10796704]
[1644545288553,0.324969,43163.0,43157.0,0.05796704]
[1644545288755,0.324969,43163.0,43150.0,0.505]
[1644545288756,0.29080976,43162.0,43150.0,0.505]
[1644545288957,0.057982,43158.0,43150.0,0.0001]
[1644545289155,0.63710592,43157.0,43150.0,0.0001]
[1644545289356,0.69509192,43157.0,43150.0,0.0001]
[1644545289556,0.256044,43154.0,43150.0,0.0001]
[1644545289754,0.53881542,43154.0,43150.0,0.0001]
[1644545289953,0.256044,43154.0,43150.0,0.0001]
[1644545290155,0.324969,43152.0,43150.0,0.0001]
[1644545290455,0.7199989,43152.0,43150.0,0.0001]
[1644545290655,0.256044,43151.0,43150.0,0.0001]
[1644545294107,0.057983,43152.0,43150.0,0.0001]
[1644545294308,0.324969,43151.0,43150.0,0.0001]
[1644545294708,0.31675452,43150.0,43147.0,0.324969]
[1644545294908,0.324969,43154.0,43147.0,0.1]
[1644545295158,0.35251349,43148.0,43147.0,0.15]
[1644545295358,0.35251349,43148.0,43147.0,0.05]
[1644545295757,0.35251349,43148.0,43144.0,0.05313]
[1644545295957,0.324969,43147.0,43144.0,0.00313]
[1644545296759,0.440953,43147.0,43144.0,0.00313]
[1644545296955,0.115984,43147.0,43144.0,0.00313]
[1644545297456,0.115984,43147.0,43146.0,0.324991]
[1644545297757,0.05,43150.0,43146.0,0.324991]
[1644545297956,0.057985,43149.0,43146.0,0.324991]
[1644545298158,0.05,43150.0,43147.0,0.324991]
[1644545298557,0.05,43150.0,43147.0,0.374991]
[1644545298806,0.05,43150.0,43147.0,0.05]
[1644545299007,0.05,43150.0,43146.0,0.00043117]
[1644545299008,0.324991,43149.0,43146.0,0.00043117]
[1644545299208,0.05,43150.0,43148.0,0.324991]
[1644545299408,0.05,43150.0,43148.0,0.374991]
[1644545300409,0.324991,43155.0,43151.0,0.0579756]
[1644545300612,0.252989,43154.0,43151.0,0.0579756]
[1644545300911,0.252989,43154.0,43148.0,0.05]
[1644545301111,0.252989,43154.0,43147.0,0.00043117]
[1644545301112,0.05,43152.0,43147.0,0.00043117]
[1644545301312,0.252989,43154.0,43143.0,0.0011]
[1644545301313,0.05,43149.0,43143.0,0.0011]
[1644545301513,0.357387,43148.0,43143.0,0.0011]
[1644545302112,0.30717379,43145.0,43143.0,0.0011]
[1644545302315,0.60656279,43145.0,43143.0,0.0011]
[1644545302567,0.35357379,43145.0,43143.0,0.0011]
[1644545303156,0.60656279,43145.0,43143.0,0.0011]
[1644545304259,0.35357379,43145.0,43143.0,0.0011]
[1644545304459,0.60656279,43145.0,43143.0,0.0011]
[1644545304864,0.35357379,43145.0,43143.0,0.0011]
[1644545305061,0.60656279,43145.0,43143.0,0.0011]
[1644545305660,0.35357379,43145.0,43143.0,0.0011]
[1644545305862,0.60656279,43145.0,43143.0,0.0011]
[1644545306303,0.35357379,43145.0,43143.0,0.0011]
[1644545307607,0.324991,43144.0,43139.0,0.00286013]
[1644545307807,0.05,43142.0,43139.0,0.00286013]
[1644545308010,0.28659217,43141.0,43139.0,0.00286013]
[1644545308209,0.252989,43140.0,43139.0,0.00286013]
[1644545308408,0.5379721,43140.0,43139.0,0.00286013]
[1644545308609,0.252989,43140.0,43139.0,0.00286013]
[1644545310062,0.5299495,43140.0,43139.0,0.00286013]
[1644545310254,0.2769605,43140.0,43139.0,0.00286013]
[1644545312356,0.5069605,43140.0,43139.0,0.00286013]
[1644545312958,0.23,43140.0,43139.0,0.00286013]
[1644545315522,0.482989,43140.0,43139.0,0.00286013]
[1644545316523,0.482989,43140.0,43138.0,0.0011]
[1644545316524,0.95,43138.0,43137.0,0.00032911]
[1644545316726,1.819009,43138.0,43137.0,9.11e-06]
[1644545316927,2.14836114,43138.0,43130.0,0.0011]
[1644545317226,0.252989,43134.0,43130.0,0.0011]
[1644545317425,0.0464,43133.0,43130.0,0.0011]
[1644545317670,0.324991,43132.0,43130.0,0.0011]
[1644545317970,0.299389,43131.0,43130.0,0.0011]
[1644545318766,0.58007209,43131.0,43130.0,0.0011]
[1644545323320,0.299389,43131.0,43130.0,0.0011]
[1644545324120,0.529389,43131.0,43130.0,0.0011]
[1644545325963,0.482989,43131.0,43130.0,0.0011]
[1644545326167,0.482989,43131.0,43130.0,0.34789756]
[1644545326367,0.23,43131.0,43130.0,0.72288856]
[1644545326765,0.23,43131.0,43130.0,0.77288856]
[1644545327365,0.23,43131.0,43130.0,0.426091]
[1644545327566,0.23,43131.0,43130.0,0.0511]
[1644545327766,0.23,43131.0,43130.0,0.0011]
[1644545328065,0.554991,43131.0,43130.0,0.0011]
[1644545328270,0.482989,43131.0,43130.0,0.0011]
[1644545328667,0.23,43131.0,43130.0,0.0011]
[1644545329112,0.23,43131.0,43130.0,0.326091]
[1644545330716,0.23,43131.0,43130.0,0.276091]
[1644545332418,0.22974933,43131.0,43130.0,0.276091]
[1644545334663,0.22974933,43131.0,43130.0,0.324991]
[1644545338317,0.22974933,43131.0,43130.0,0.374991]
[1644545338519,0.22974933,43131.0,43130.0,0.474991]
[1644545338721,0.22974933,43131.0,43130.0,0.524991]
[1644545341665,0.22974933,43131.0,43130.0,0.374991]
[1644545342270,0.22974933,43131.0,43130.0,0.424991]
[1644545342464,0.22974933,43131.0,43130.0,0.524991]
[1644545342665,0.22974933,43131.0,43130.0,0.424991]
[1644545342865,0.22974933,43131.0,43130.0,0.374991]
[1644545343920,0.22974933,43131.0,43130.0,0.05]
[1644545344115,0.53155633,43131.0,43129.0,0.05]
[1644545344315,0.53155633,43131.0,43128.0,0.28455151]
[1644545344316,0.32475309,43130.0,43128.0,0.28455151]
[1644545344518,0.22974933,43131.0,43129.0,0.325062]
[1644545344719,0.22974933,43131.0,43129.0,0.05]
[1644545345117,0.301807,43130.0,43128.0,0.28455152]
[1644545345320,0.53592826,43131.0,43129.0,0.05]
[1644545345518,0.325062,43130.0,43129.0,0.05]
[1644545345716,0.325062,43130.0,43128.0,0.06010944]
[1644545345918,0.301807,43129.0,43128.0,0.06053655]
[1644545346918,0.301807,43129.0,43128.0,0.11811744]
[1644545347118,0.301807,43129.0,43128.0,0.06010944]
[1644545347568,0.325062,43130.0,43128.0,0.06010944]
[1644545347760,0.325062,43130.0,43128.0,0.17612307]
[1644545348762,0.325062,43130.0,43128.0,0.22612307]
[1644545349363,0.325062,43130.0,43128.0,0.11010944]
[1644545349563,0.325062,43130.0,43128.0,0.0021]
[1644545349766,0.27986995,43129.0,43128.0,0.0021]
[1644545349966,0.32626995,43129.0,43128.0,0.0021]
[1644545352122,0.62807695,43129.0,43128.0,0.0021]
[1644545354526,0.32626995,43129.0,43128.0,0.0021]
[1644545354723,0.62807695,43129.0,43128.0,0.0021]
[1644545355762,0.32626995,43129.0,43128.0,0.00203899]
[1644545355967,0.325062,43130.0,43128.0,0.00203899]
[1644545356963,0.6240356,43129.0,43128.0,0.0572499]
[1644545358164,0.301807,43129.0,43128.0,0.0572499]
[1644545358663,0.301807,43129.0,43128.0,0.001]
[1644545359113,0.68848777,43129.0,43128.0,0.001]
[1644545359912,0.301807,43129.0,43128.0,0.001]
[1644545360112,0.301807,43129.0,43128.0,0.05901133]
[1644545363064,0.291807,43129.0,43128.0,0.05901133]
[1644545367421,0.325062,43129.0,43128.0,0.001]
[1644545367627,0.291806,43129.0,43128.0,0.001]
[1644545367826,0.22974933,43131.0,43128.0,0.376071]
[1644545368022,0.22974933,43131.0,43128.0,0.37624893]
[1644545368223,0.22974933,43131.0,43129.0,0.30524571]
[1644545368425,0.22974933,43131.0,43130.0,0.325071]
[1644545368622,0.22974933,43131.0,43130.0,0.375071]
[1644545370469,0.22974933,43131.0,43130.0,0.05]
[1644545370668,0.22974933,43131.0,43130.0,0.375071]
[1644545373270,0.22974933,43131.0,43130.0,0.44832882]
[1644545373569,0.22974933,43131.0,43130.0,0.375071]
[1644545374017,0.22451743,43131.0,43130.0,0.375071]
[1644545374716,0.22451743,43131.0,43130.0,0.425071]
[1644545379565,0.22451743,43131.0,43130.0,0.475071]
[1644545379767,0.22451743,43131.0,43130.0,0.575071]
[1644545381415,0.05,43138.0,43137.0,0.40011325]
[1644545381815,0.05,43138.0,43137.0,0.45011325]
[1644545382615,0.05,43138.0,43135.0,0.10834093]
[1644545382616,0.375071,43138.0,43135.0,0.10834093]
[1644545382818,0.375071,43138.0,43135.0,0.00034775]
[1644545382819,0.291797,43137.0,43135.0,0.00034775]
[1644545383018,0.291797,43137.0,43128.0,0.00117793]
[1644545383019,0.349805,43137.0,43128.0,0.00117793]
[1644545383221,0.166025,43138.0,43128.0,0.00117793]
[1644545383222,0.325071,43136.0,43128.0,0.00117793]
[1644545383517,0.349808,43135.0,43134.0,0.00034775]
[1644545384416,0.349808,43135.0,43130.0,0.05800659]
[1644545384616,0.325071,43134.0,43132.0,0.00034777]
[1644545384818,0.349804,43133.0,43132.0,0.00034777]
[1644545385468,0.349804,43133.0,43130.0,0.05800659]
[1644545385667,0.349804,43133.0,43130.0,0.05835679]
[1644545385668,0.058007,43133.0,43130.0,0.05835679]
[1644545385878,0.325071,43132.0,43130.0,0.05835679]
[1644545386069,0.383078,43132.0,43130.0,0.05835679]
[1644545386270,0.058007,43132.0,43130.0,0.05835679]
[1644545386669,0.058007,43132.0,43130.0,0.058009]
[1644545387072,0.058007,43132.0,43130.0,0.11601627]
[1644545387270,0.058007,43132.0,43130.0,0.16601627]
[1644545388272,0.383078,43132.0,43130.0,0.108009]
[1644545388941,0.058007,43132.0,43130.0,0.108009]
[1644545389741,0.053007,43132.0,43130.0,0.108009]
[1644545390843,0.05,43138.0,43130.0,0.108009]
[1644545390844,0.058002,43135.0,43130.0,0.108009]
[1644545391045,0.17199545,43132.0,43131.0,0.058004]
[1644545392443,0.17199545,43132.0,43131.0,0.6812436]
[1644545392868,0.17199545,43132.0,43131.0,0.7812436]
[1644545393572,0.17199545,43132.0,43131.0,0.383075]
[1644545394968,0.17199545,43132.0,43131.0,0.79322982]
[1644545395568,0.10645175,43132.0,43131.0,0.84322982]
[1644545395772,0.00056729,43144.0,43133.0,0.383062]
[1644545395972,0.00056729,43144.0,43137.0,0.375071]
[1644545396173,0.00056729,43144.0,43137.0,0.325071]
[1644545396412,0.1196,43150.0,43138.0,0.67031993]
[1644545396615,0.325071,43149.0,43145.0,0.38753371]
[1644545396814,0.33872136,43148.0,43145.0,0.48753371]
[1644545397014,0.291797,43147.0,43145.0,0.54552071]
[1644545397615,0.291797,43147.0,43146.0,0.05798749]
[1644545398015,0.05855339,43148.0,43146.0,0.05798749]
[1644545398215,0.05855339,43148.0,43146.0,0.11597449]
[1644545398515,0.05855339,43148.0,43146.0,0.10798749]
[1644545398720,0.291796,43147.0,43146.0,0.10798749]
[1644545399019,0.383057,43148.0,43146.0,0.10798749]
[1644545399417,0.383057,43148.0,43146.0,0.16597549]
[1644545399418,0.66845071,43148.0,43146.0,0.16597549]
[1644545400469,0.66845071,43148.0,43146.0,0.05]
[1644545400666,0.66845071,43148.0,43145.0,0.057991]
[1644545401272,0.28539371,43148.0,43145.0,0.057991]
[1644545401469,0.00056739,43149.0,43145.0,0.057991]
[1644545402167,0.00056739,43149.0,43146.0,0.057987]
[1644545402368,0.057987,43147.0,43146.0,0.057987]
[1644545402567,0.23,43148.0,43146.0,0.057987]
[1644545402767,0.325071,43147.0,43146.0,0.057987]
[1644545403368,0.325071,43147.0,43146.0,0.11597236]
[1644545403567,0.579784,43148.0,43146.0,0.16597236]
[1644545403817,0.71282225,43148.0,43146.0,0.21597236]
[1644545404016,0.579784,43148.0,43146.0,0.21597236]
[1644545404415,0.56739329,43148.0,43146.0,0.21597236]
[1644545404619,0.27559629,43148.0,43146.0,0.21597236]
[1644545404916,0.21760929,43148.0,43146.0,0.21597236]
[1644545405716,0.50940529,43148.0,43146.0,0.15798536]
[1644545405917,0.50940629,43148.0,43146.0,0.21597336]